bitfinex-derivatives/quotes_BNBF0:USTF0_20250609
["timestamp","ask_amount","ask_price","bid_price","bid_amount"]
[1749436306522,1.12077849,651.12,649.8,0.30778701]
[1749436306721,1.12077849,651.11,649.8,0.30778701]
[1749436307022,1.12077849,651.1,649.8,0.30778701]
[1749436307220,1.12077849,651.09,649.8,0.30778701]
[1749436307426,0.30715832,651.13,649.8,0.30778701]
[1749436314333,0.30715832,651.13,650.07,3.81447787]
[1749436315331,0.30715832,651.13,650.06,3.81447787]
[1749436316136,0.30715832,651.13,650.05,3.81447787]
[1749436318135,0.30715832,651.13,650.17,3.81447787]
[1749436319041,0.30715832,651.13,650.18,3.81447787]
[1749436319939,0.30715832,651.13,650.17,3.81447787]
[1749436320337,0.30715832,651.13,650.15,3.81447787]
[1749436320940,0.30715832,651.13,650.14,3.81447787]
[1749436321736,0.30715832,651.13,650.12,3.81447787]
[1749436322142,0.30715832,651.13,650.13,3.81447787]
[1749436322542,0.30715832,651.13,649.87,5.34026902]
[1749436322543,0.30715832,651.13,650.11,3.81447787]
[1749436323046,0.30715832,651.13,650.1,3.81447787]
[1749436324342,0.30715832,651.13,650.11,3.81447787]
[1749436324748,0.30715832,651.13,650.22,3.81447787]
[1749436326349,0.30715832,651.13,650.01,5.34026902]
[1749436326850,0.30715832,651.13,649.97,3.81447787]
[1749436327550,0.30715832,651.13,649.99,3.81447787]
[1749436329446,0.30715832,651.13,649.81,3.81447787]
[1749436329851,0.30715832,651.13,649.8,4.12226488]
[1749436330850,0.30715832,651.13,649.81,3.81447787]
[1749436331351,0.30715832,651.13,649.8,4.12226488]
[1749436331756,0.30715832,651.13,649.81,3.81447787]
[1749436334757,0.30715832,651.13,649.8,0.30778701]
[1749436334758,0.30715832,651.13,649.82,3.81447787]
[1749436335255,0.30715832,651.13,649.81,3.81447787]
[1749436335654,1.12077849,651.12,649.8,0.30778701]
[1749436335856,0.30716775,651.11,649.8,0.30778701]
[1749436336060,1.12077849,651.1,649.8,0.30778701]
[1749436336258,1.42795568,651.09,649.8,4.12226488]
[1749436336457,0.30718191,651.08,649.8,4.12226488]
[1749436337264,1.12077849,651.07,649.8,0.30778701]
[1749436337558,1.42796983,651.06,649.8,0.30778701]
[1749436337758,0.30719606,651.05,649.8,0.30778701]
[1749436339366,0.30719606,651.05,650.0,3.81447787]
[1749436339864,0.30719606,651.05,650.05,3.81447787]
[1749436340669,0.30719606,651.05,650.01,3.81447787]
[1749436341670,0.30719606,651.05,649.97,3.81447787]
[1749436342468,0.30719606,651.05,649.93,3.81447787]
[1749436342971,0.30719606,651.05,649.95,3.81447787]
[1749436343373,0.30719606,651.05,649.96,3.81447787]
[1749436344770,0.30719606,651.05,650.01,3.81447787]
[1749436345075,0.30719606,651.05,650.02,3.81447787]
[1749436346372,0.30719606,651.05,650.03,3.81447787]
[1749436347575,0.30719606,651.05,650.0,3.81447787]
[1749436351374,0.30719606,651.05,650.08,3.81447787]
[1749436351773,0.30719606,651.05,650.09,3.81447787]
[1749436352377,0.30719606,651.05,650.22,3.81447787]
[1749436353178,0.30719606,651.05,650.23,3.81447787]
[1749436356980,1.12077849,651.04,650.23,3.81447787]
[1749436357182,1.42798399,651.03,650.01,5.34026902]
[1749436357383,1.12077849,651.02,650.01,5.34026902]
[1749436357585,1.12077849,651.01,649.8,0.30778701]
[1749436357779,1.12077849,651.0,649.8,0.30778701]
[1749436358083,1.12077849,650.99,649.8,0.30778701]
[1749436358283,1.12077849,650.98,649.8,0.30778701]
[1749436358483,1.12077849,650.97,649.8,0.30778701]
[1749436358780,1.12077849,651.02,649.8,0.30778701]
[1749436358979,1.12077849,651.01,649.8,0.30778701]
[1749436359179,1.12077849,651.0,649.8,0.30778701]
[1749436359380,1.12077849,650.99,649.8,0.30778701]
[1749436359685,1.12077849,650.98,649.8,0.30778701]
[1749436359885,1.12077849,651.02,649.8,0.30778701]
[1749436360086,1.12077849,651.01,649.8,0.30778701]
[1749436360286,1.12077849,651.0,649.8,0.30778701]
[1749436360483,1.12077849,650.99,649.8,0.30778701]
[1749436360680,1.12077849,651.02,649.8,0.30778701]
[1749436360882,1.12077849,651.01,649.8,0.30778701]
[1749436361081,1.12077849,651.0,649.8,0.30778701]
[1749436361286,1.12077849,650.99,649.8,0.30778701]
[1749436361586,1.12077849,651.02,649.8,0.30778701]
[1749436361786,1.12077849,651.01,649.8,0.30778701]
[1749436361984,1.12077849,651.0,649.8,0.30778701]
[1749436362183,1.12077849,650.99,649.8,0.30778701]
[1749436362386,1.12077849,651.02,649.8,0.30778701]
[1749436362708,1.12077849,651.01,649.8,0.30778701]
[1749436362882,1.12077849,651.0,649.8,0.30778701]
[1749436363083,1.12077849,650.99,649.8,0.30778701]
[1749436363288,1.12077849,651.02,649.8,0.30778701]
[1749436363483,1.12077849,651.01,649.8,0.30778701]
[1749436363684,1.12077849,651.0,649.8,0.30778701]
[1749436363887,1.12077849,650.99,649.8,0.30778701]
[1749436364088,1.12077849,651.02,649.8,0.30778701]
[1749436364384,1.12077849,651.01,649.8,0.30778701]
[1749436364588,1.12077849,651.0,649.8,0.30778701]
[1749436364786,1.12077849,651.02,649.8,0.30778701]
[1749436365785,0.3072055,651.03,649.8,0.30778701]
[1749436367190,0.3072055,651.03,649.98,3.81447787]
[1749436367588,0.3072055,651.03,650.02,3.81447787]
[1749436368591,0.3072055,651.03,649.92,3.81447787]
[1749436369485,0.3072055,651.03,649.93,3.81447787]
[1749436370287,0.3072055,651.03,649.97,3.81447787]
[1749436370891,0.3072055,651.03,649.96,3.81447787]
[1749436371185,0.3072055,651.03,649.95,3.81447787]
[1749436374188,0.3072055,651.03,649.94,3.81447787]
[1749436374593,0.3072055,651.03,649.95,3.81447787]
[1749436374992,0.3072055,651.03,649.97,3.81447787]
[1749436375892,0.3072055,651.03,649.98,3.81447787]
[1749436377690,0.3072055,651.03,650.01,3.81447787]
[1749436378189,0.3072055,651.03,650.05,3.81447787]
[1749436378493,0.3072055,651.03,650.24,3.81447787]
[1749436379394,0.3072055,651.03,650.23,3.81447787]
[1749436381194,0.3072055,651.03,650.27,3.81447787]
[1749436382092,0.3072055,651.03,650.26,3.81447787]
[1749436383598,0.3072055,651.03,650.11,3.81447787]
[1749436383991,0.3072055,651.03,649.92,3.81447787]
[1749436384396,0.3072055,651.03,649.88,3.81447787]
[1749436384799,0.3072055,651.03,649.9,3.81447787]
[1749436385200,0.3072055,651.03,649.91,3.81447787]
[1749436386202,0.3072055,651.03,649.89,3.81447787]
[1749436387698,0.3072055,651.03,649.81,3.81447787]
[1749436387999,0.3072055,651.03,649.8,4.12226488]
[1749436388397,0.3072055,651.03,649.8,0.30778701]
[1749436392904,0.3072055,651.03,649.88,3.81447787]
[1749436393605,0.3072055,651.03,650.01,3.81447787]
[1749436394906,0.3072055,651.03,650.02,3.81447787]
[1749436395309,0.3072055,651.03,650.07,3.81447787]
[1749436396108,0.3072055,651.03,650.06,3.81447787]
[1749436397012,0.3072055,651.03,650.05,3.81447787]
[1749436398510,0.3072055,651.03,650.06,3.81447787]
[1749436398914,0.3072055,651.03,649.94,3.81447787]
[1749436399314,0.3072055,651.03,649.93,3.81447787]
[1749436399710,0.3072055,651.03,649.9,3.81447787]
[1749436399914,1.11613265,651.02,649.8,0.30778701]
[1749436400214,1.42334759,651.01,649.8,0.30778701]
[1749436400410,1.11613265,651.0,649.8,0.30778701]
[1749436400616,1.11613265,650.99,649.8,0.30778701]
[1749436400814,0.30723382,650.97,649.41,0.26771084]
[1749436401015,1.11613265,650.96,649.41,0.26771084]
[1749436401214,0.30724797,650.94,649.41,0.26771084]
[1749436401418,1.11613265,650.93,649.41,0.26771084]
[1749436401719,0.30726214,650.91,649.41,0.26771084]
[1749436401919,1.11613265,650.9,649.41,0.26771084]
[1749436402115,0.3072763,650.88,649.41,0.26771084]
[1749436402414,1.11613265,650.87,649.41,0.26771084]
[1749436402618,0.30729046,650.85,649.41,0.26771084]
[1749436402916,1.11613265,650.84,649.41,0.26771084]
[1749436403118,0.30730463,650.82,649.41,0.26771084]
[1749436403418,1.11613265,650.81,649.41,0.26771084]
[1749436403617,0.30731407,650.8,649.41,0.26771084]
[1749436406920,1.42344672,650.8,649.41,0.26771084]
[1749436407218,0.30731407,650.8,649.41,0.26771084]
[1749436408320,1.11613265,650.79,647.84,3.81447787]
[1749436408620,0.30732824,650.77,649.25,0.26775204]
[1749436408819,1.11613265,650.76,648.59,3.81447787]
[1749436409123,0.30734241,650.74,649.25,0.26783962]
[1749436409424,1.11613265,650.73,648.69,0.30831367]
[1749436409623,0.30735657,650.71,649.25,0.26776955]
[1749436409824,1.11613265,650.7,649.25,0.26776955]
[1749436410120,0.30737075,650.68,649.25,0.26776955]
[1749436410324,1.11613265,650.67,649.25,0.26776955]
[1749436410624,1.42351284,650.66,649.25,0.26776955]
[1749436410818,0.30738964,650.64,649.25,0.26776955]
[1749436411022,1.11613265,650.63,649.25,0.26776955]
[1749436411221,1.14820509,650.77,649.25,0.26776955]
[1749436411222,1.42353174,650.62,649.25,0.26776955]
[1749436411521,0.30740382,650.61,649.25,0.26776955]
[1749436414325,1.11613265,650.6,649.25,0.26776955]
[1749436414526,0.30741327,650.59,649.25,0.26776955]
[1749436414922,3.76122504,650.59,649.25,0.26776955]
[1749436415122,2.36172906,650.58,649.25,0.26776955]
[1749436415321,1.42355537,650.57,649.25,0.26776955]
[1749436415528,0.30742744,650.56,649.25,0.26776955]
[1749436417327,1.11613265,650.55,649.25,0.26776955]
[1749436417526,1.42356954,650.54,649.25,0.26776955]
[1749436417726,1.42357427,650.53,649.25,0.26776955]
[1749436417927,1.423579,650.52,649.25,0.26776955]
[1749436418127,1.42358372,650.51,649.25,0.26776955]
[1749436418324,0.3074558,650.5,649.25,0.26776955]
[1749436423329,2.66506815,650.5,649.25,0.26776955]
[1749436423530,1.11613265,650.49,649.25,0.57581729]
[1749436423729,0.3074558,650.5,649.26,0.308043]
[1749436437038,0.26769231,650.2,649.26,0.308043]
[1749436453854,0.26769231,650.2,649.43,3.81447787]
[1749436454655,0.26769231,650.2,649.35,3.81447787]
[1749436455557,0.26769231,650.2,649.39,3.81447787]
[1749436456653,0.26769231,650.2,649.44,3.81447787]
[1749436457056,0.26769231,650.2,649.43,3.81447787]
[1749436457554,0.26769231,650.2,649.44,3.81447787]
[1749436458757,0.26769231,650.2,649.45,3.81447787]
[1749436459260,0.26769231,650.2,649.46,3.81447787]
[1749436459661,0.26769231,650.2,649.48,3.81447787]
[1749436460062,0.26769231,650.2,649.3,3.81447787]
[1749436460560,0.26769231,650.2,649.29,3.81447787]
[1749436461164,0.26769231,650.2,649.28,3.81447787]
[1749436462570,0.26769231,650.2,649.26,0.308043]
[1749436463368,0.26769231,650.2,649.27,3.81447787]
[1749436463870,0.26769231,650.2,649.29,3.81447787]
[1749436464269,0.26769231,650.2,649.3,3.81447787]
[1749436464570,0.26769231,650.2,649.3,4.12250189]
[1749436467369,0.26769231,650.2,649.36,3.81447787]
[1749436470178,0.26769231,650.2,649.3,0.30802402]
[1749436480082,0.26769231,650.2,649.6,3.81447787]
[1749436480878,0.26769231,650.2,649.61,3.81447787]
[1749436481682,0.26769231,650.2,649.64,3.81447787]
[1749436482682,0.26769231,650.2,649.65,3.81447787]
[1749436483785,0.26769231,650.2,649.66,3.81447787]
[1749436484080,0.26769231,650.2,649.69,3.81447787]
[1749436484882,0.26769231,650.2,649.72,3.81447787]
[1749436485587,0.26769231,650.2,649.65,3.81447787]
[1749436487684,0.26769231,650.2,649.55,3.81447787]
[1749436488686,0.26769231,650.2,649.54,3.81447787]
[1749436489189,0.26769231,650.2,649.53,3.81447787]
[1749436489590,0.26769231,650.2,649.68,3.81447787]
[1749436491287,0.26769231,650.2,649.67,3.81447787]
[1749436492991,0.26769231,650.2,649.51,3.81447787]
[1749436493592,0.26769231,650.2,649.39,3.81447787]
[1749436494195,0.26769231,650.2,649.3,0.30802402]
[1749436494196,0.26769231,650.2,649.38,3.81447787]
[1749436496292,0.26769231,650.2,649.33,3.81447787]
[1749436496497,0.26769231,650.2,649.34,0.30800505]
[1749436503002,0.26769231,650.2,649.37,3.81447787]
[1749436503499,0.26769231,650.2,649.34,0.30800505]
[1749436513510,0.26769231,650.2,649.51,3.81447787]
[1749436513906,0.26769231,650.2,649.52,3.81447787]
[1749436516508,0.26769231,650.2,649.54,3.81447787]
[1749436516911,0.26769231,650.2,649.53,3.81447787]
[1749436517914,0.26769231,650.2,649.55,3.81447787]
[1749436518817,0.26769231,650.2,649.54,3.81447787]
[1749436519616,0.26769231,650.2,649.64,3.81447787]
[1749436521517,0.26769231,650.2,649.63,3.81447787]
[1749436521917,0.26769231,650.2,649.59,3.81447787]
[1749436522416,0.26769231,650.2,649.41,3.81447787]
[1749436523113,0.26769231,650.2,649.4,3.81447787]
[1749436524718,0.26769231,650.2,649.39,3.81447787]
[1749436525414,0.26769231,650.2,649.38,3.81447787]
[1749436527320,0.26769231,650.2,649.34,0.30800505]
[1749436536023,0.26769231,650.2,649.05,0.26779428]
[1749436560541,0.26769231,650.2,649.09,3.81447787]
[1749436561142,0.30760239,650.19,648.12,3.81447787]
[1749436561341,1.41912681,650.19,648.24,3.81447787]
[1749436561645,1.41912681,650.19,648.26,0.30851818]
[1749436561845,0.30760239,650.19,648.3,3.81447787]
[1749436562041,0.30760239,650.19,648.72,0.26796233]
[1749436562341,0.30760239,650.19,648.73,0.30829466]
[1749436565147,1.41912681,650.19,648.73,0.30829466]
[1749436565349,0.30760239,650.19,648.73,0.30829466]
[1749436567447,1.11152442,650.18,648.73,0.30829466]
[1749436567650,1.41913627,650.17,648.73,0.30829466]
[1749436567851,1.419141,650.16,648.73,0.30829466]
[1749436568052,0.30762131,650.15,648.73,0.30829466]
[1749436583178,0.30762131,650.15,648.97,3.81447787]
[1749436583873,0.30762131,650.15,648.28,5.34026902]
[1749436583874,0.26779531,649.87,649.16,3.81447787]
[1749436584075,0.30762131,650.15,649.17,3.81447787]
[1749436584676,0.30762131,650.15,648.98,0.3081759]
[1749436584677,0.30762131,650.15,649.15,3.81447787]
[1749436585580,0.26775719,649.93,649.15,3.81447787]
[1749436586081,0.26775719,649.93,649.16,3.81447787]
[1749436586282,0.26775719,649.93,649.15,3.81447787]
[1749436586975,0.26775719,649.93,649.21,3.81447787]
[1749436587277,0.26775719,649.93,649.22,3.81447787]
[1749436587879,0.26775719,649.93,649.23,3.81447787]
[1749436589277,0.26775719,649.93,649.26,3.81447787]
[1749436589476,0.26775719,649.93,649.24,3.81447787]
[1749436591482,0.26775719,649.93,649.3,3.81447787]
[1749436593587,0.26775719,649.93,649.29,3.81447787]
[1749436593994,0.26775719,649.93,649.3,3.81447787]
[1749436594389,0.26775719,649.93,649.32,3.81447787]
[1749436596589,0.26775719,649.93,649.31,3.81447787]
[1749436597091,1.11152442,650.56,649.05,3.81447787]
[1749436597394,0.26775513,650.04,649.06,0.30813792]
[1749436597594,0.30743217,650.55,649.11,3.81447787]
[1749436597791,0.26774071,650.04,649.12,0.30810944]
[1749436597990,0.26774071,650.04,649.17,3.81447787]
[1749436598192,0.30743217,650.55,649.18,0.30808096]
[1749436598390,0.26773453,650.04,649.18,0.30808096]
[1749436598594,0.30743217,650.55,649.18,0.30808096]
[1749436599094,0.26772835,650.04,649.22,3.81447787]
[1749436599290,0.30743217,650.55,649.27,3.81447787]
[1749436599590,0.2677232,650.04,649.27,3.81447787]
[1749436599990,0.30743217,650.55,649.27,3.81447787]
[1749436600194,0.26771805,650.04,649.27,3.81447787]
[1749436600392,0.30743217,650.55,649.27,3.81447787]
[1749436600794,0.26771805,650.04,649.27,3.81447787]
[1749436600993,0.30743217,650.55,649.27,3.81447787]
[1749436601193,0.26770878,650.24,649.37,3.81447787]
[1749436601599,0.26770878,650.24,649.36,3.81447787]
[1749436602092,0.26770878,650.24,649.35,3.81447787]
[1749436602496,0.26770878,650.24,649.28,3.81447787]
[1749436603391,0.26770878,650.24,649.26,3.81447787]
[1749436604394,0.26770878,650.24,649.22,3.81447787]
[1749436604891,0.26770878,650.24,649.2,3.81447787]
[1749436605093,0.26770878,650.24,649.21,0.30806672]
[1749436642718,0.26770878,650.24,649.24,3.81447787]
[1749436643618,0.26770878,650.24,649.25,3.81447787]
[1749436644115,0.26770878,650.24,649.26,3.81447787]
[1749436645421,0.26770878,650.24,649.25,3.81447787]
[1749436646122,0.26770878,650.24,649.38,3.81447787]
[1749436647225,0.26770878,650.24,649.37,3.81447787]
[1749436649024,0.26770878,650.24,649.33,3.81447787]
[1749436649626,0.26770878,650.24,649.32,3.81447787]
[1749436650022,0.26770878,650.24,649.29,3.81447787]
[1749436653324,0.26770878,650.24,649.32,3.81447787]
[1749436654128,0.26770878,650.24,649.37,3.81447787]
[1749436654930,0.26770878,650.24,649.28,3.81447787]
[1749436655526,0.26770878,650.24,649.24,3.81447787]
[1749436656426,0.26770878,650.24,649.25,3.81447787]
[1749436657630,0.26770878,650.24,649.28,3.81447787]
[1749436658932,0.26770878,650.24,649.3,3.81447787]
[1749436659828,0.26770878,650.24,649.32,3.81447787]
[1749436660434,0.26770878,650.24,649.31,3.81447787]
[1749436660935,0.26770878,650.24,649.29,3.81447787]
[1749436663038,0.26770878,650.24,649.28,3.81447787]
[1749436663935,0.26770878,650.24,649.26,3.81447787]
[1749436664937,0.26770878,650.24,649.33,3.81447787]
[1749436665334,0.26770878,650.24,649.38,3.81447787]
[1749436671040,0.26770878,650.24,649.21,0.30806672]
[1749436687859,0.26770878,650.24,649.28,3.83604247]
[1749436689152,0.26770878,650.24,649.22,3.83604247]
[1749436690458,0.26770878,650.24,649.21,4.14410919]
[1749436691054,0.26770878,650.24,649.23,3.83604247]
[1749436691858,0.26770878,650.24,649.21,0.30806672]
[1749436691859,0.26770878,650.24,649.22,3.83604247]
[1749436694659,0.26770878,650.24,649.24,3.83604247]
[1749436695160,0.26770878,650.24,649.23,3.83604247]
[1749436696859,0.26770878,650.24,649.21,0.30806672]
[1749436707561,1.11343636,650.23,649.21,0.30806672]
[1749436707864,1.11343636,650.22,649.21,0.30806672]
[1749436708065,1.11343636,650.21,649.21,0.30806672]
[1749436708261,1.11343636,650.2,649.21,0.30806672]
[1749436708465,1.11343636,650.23,649.21,0.30806672]
[1749436708665,1.11429039,650.22,649.21,0.30806672]
[1749436708865,1.11429039,650.21,649.21,0.30806672]
[1749436709059,1.11429039,650.2,649.21,0.30806672]
[1749436709364,1.11429039,650.23,649.21,0.30806672]
[1749436709564,1.11429039,650.22,649.21,0.30806672]
[1749436709761,1.11429039,650.21,649.21,0.30806672]
[1749436709960,1.11429039,650.2,649.21,0.30806672]
[1749436710164,1.11429039,650.23,649.21,0.30806672]
[1749436710362,1.11429039,650.22,649.21,0.30806672]
[1749436710563,1.11429039,650.21,649.21,0.30806672]
[1749436710765,1.11429039,650.2,649.21,0.30806672]
[1749436710964,1.11429039,650.23,649.21,0.30806672]
[1749436711162,1.11429039,650.22,649.21,0.30806672]
[1749436711466,1.11429039,650.21,649.21,0.30806672]
[1749436711661,1.11429039,650.23,649.21,0.30806672]
[1749436711865,1.11429039,650.22,649.21,0.30806672]
[1749436712063,1.11429039,650.23,649.21,0.30806672]
[1749436712262,1.11429039,650.22,649.21,0.30806672]
[1749436712472,1.11429039,650.23,649.21,0.30806672]
[1749436712668,1.11429039,650.22,649.21,0.30806672]
[1749436712867,1.11429039,650.23,649.21,0.30806672]
[1749436713069,1.11429039,650.22,649.21,0.30806672]
[1749436713364,0.26770878,650.24,649.21,0.30806672]
[1749436713365,1.11429039,650.23,649.21,0.30806672]
[1749436713664,1.11429039,650.22,649.21,0.30806672]
[1749436713864,1.11429039,650.23,649.21,0.30806672]
[1749436714068,0.26770878,650.24,649.21,0.30806672]
[1749436714963,1.11429039,650.23,649.21,0.30806672]
[1749436715164,0.26770878,650.24,649.21,0.30806672]
[1749436715468,1.11429039,650.23,649.21,0.30806672]
[1749436717668,1.11429039,650.22,649.21,0.30806672]
[1749436717968,1.11429039,650.21,649.21,0.30806672]
[1749436718172,1.11429039,650.23,649.21,0.30806672]
[1749436718472,1.11429039,650.22,649.21,0.30806672]
[1749436718767,1.11429039,650.23,649.21,4.14410919]
[1749436718973,1.11429039,650.22,649.21,4.14410919]
[1749436719170,1.11429039,650.23,649.21,4.14410919]
[1749436719370,1.11429039,650.22,649.21,4.14410919]
[1749436719671,1.11429039,650.21,649.21,4.14410919]
[1749436719869,1.11429039,650.23,649.21,4.14410919]
[1749436720069,0.26770878,650.24,649.21,4.14410919]
[1749436720070,1.11429039,650.22,649.21,0.30806672]
[1749436720274,1.11429039,650.21,649.21,0.30806672]
[1749436720474,1.11429039,650.2,649.21,0.30806672]
[1749436720671,1.11429039,650.19,649.21,0.30806672]
[1749436720975,1.11429039,650.23,649.21,0.30806672]
[1749436721171,1.11429039,650.22,649.21,0.30806672]
[1749436721473,1.11429039,650.21,649.21,0.30806672]
[1749436721676,1.11429039,650.2,649.21,0.30806672]
[1749436721871,1.11429039,650.19,649.21,0.30806672]
[1749436722072,1.11429039,650.23,649.21,0.30806672]
[1749436722375,1.11429039,650.22,649.21,0.30806672]
[1749436722572,1.11429039,650.21,649.21,0.30806672]
[1749436722773,1.11429039,650.2,649.21,0.30806672]
[1749436722976,0.26770878,650.24,649.21,0.30806672]
[1749436723174,1.11522183,650.23,649.21,0.30806672]
[1749436723375,1.11522183,650.22,649.21,0.30806672]
[1749436723575,1.11522183,650.21,649.21,0.30806672]
[1749436723777,1.11522183,650.2,649.21,0.30806672]
[1749436723976,1.11522183,650.19,649.21,0.30806672]
[1749436724176,1.11522183,650.18,649.21,0.30806672]
[1749436724377,1.11522183,650.23,649.21,0.30806672]
[1749436724576,1.11522183,650.22,649.21,0.30806672]
[1749436724774,0.26770878,650.24,649.21,0.30806672]
[1749436724775,1.11522183,650.21,649.21,0.30806672]
[1749436724974,1.11522183,650.2,649.21,0.30806672]
[1749436725273,1.11522183,650.19,649.21,0.30806672]
[1749436725478,1.11522183,650.18,649.21,0.30806672]
[1749436725678,1.11522183,650.17,649.21,0.30806672]
[1749436725976,1.11522183,650.16,649.21,0.30806672]
[1749436726277,1.11522183,650.15,649.21,0.30806672]
[1749436726478,1.11522183,650.14,649.21,0.30806672]
[1749436726675,1.11522183,650.23,649.21,0.30806672]
[1749436726875,1.11522183,650.22,649.21,0.30806672]
[1749436727079,1.11522183,650.21,649.21,0.30806672]
[1749436727275,1.11522183,650.2,649.21,0.30806672]
[1749436727479,1.11522183,650.19,649.21,0.30806672]
[1749436727681,1.11522183,650.18,649.21,0.30806672]
[1749436727977,1.11522183,650.17,649.21,0.30806672]
[1749436728175,1.11522183,650.16,649.21,0.30806672]
[1749436728380,1.11522183,650.15,649.21,0.30806672]
[1749436728577,1.11522183,650.14,649.21,0.30806672]
[1749436728781,1.11522183,650.13,649.21,0.30806672]
[1749436728982,1.11522183,650.23,649.21,0.30806672]
[1749436729181,1.11522183,650.22,649.21,0.30806672]
[1749436729384,1.11522183,650.21,649.21,0.30806672]
[1749436729583,1.11522183,650.2,649.21,0.30806672]
[1749436729779,1.11522183,650.19,649.21,0.30806672]
[1749436729983,1.11522183,650.18,649.23,3.83604247]
[1749436730181,1.11522183,650.17,649.23,3.83604247]
[1749436730384,1.11522183,650.16,649.21,0.30806672]
[1749436730683,1.11522183,650.15,649.21,0.30806672]
[1749436730884,1.11522183,650.14,649.21,0.30806672]
[1749436731178,1.11522183,650.13,649.21,0.30806672]
[1749436731383,1.11522183,650.12,649.21,0.30806672]
[1749436731581,1.11522183,650.11,649.21,0.30806672]
[1749436731786,1.11522183,650.1,648.89,0.26779531]
[1749436731981,1.11522183,650.09,648.89,0.26779531]
[1749436732188,1.11522183,650.08,648.89,0.26779531]
[1749436732384,1.11522183,650.07,648.89,0.26779531]
[1749436732583,1.11522183,650.06,648.89,0.26779531]
[1749436732785,1.11522183,650.05,648.89,0.26779531]
[1749436732984,1.11522183,650.04,648.89,0.26779531]
[1749436733189,1.11522183,650.03,648.89,0.26779531]
[1749436733388,1.11522183,650.02,648.89,0.26779531]
[1749436733585,1.11522183,650.23,648.89,0.26779531]
[1749436733890,1.42281003,650.22,648.89,0.26779531]
[1749436734085,1.42281476,650.21,648.89,0.26779531]
[1749436734287,1.42281949,650.2,648.89,0.26779531]
[1749436734484,1.42282422,650.19,648.89,0.26779531]
[1749436734684,1.42282895,650.18,648.89,0.26779531]
[1749436734888,1.42283368,650.17,648.89,0.26779531]
[1749436735088,1.42283841,650.16,648.89,0.26779531]
[1749436735386,1.42284314,650.15,648.89,0.26779531]
[1749436735690,1.11522183,650.14,648.89,0.26779531]
[1749436735889,1.11522183,650.13,648.89,0.26779531]
[1749436736089,1.11522183,650.12,648.89,0.26779531]
[1749436736386,1.11522183,650.11,648.89,0.26779531]
[1749436736686,1.11522183,650.1,648.89,0.26779531]
[1749436736886,1.11522183,650.09,648.89,0.26779531]
[1749436737083,1.11522183,650.08,648.89,0.26779531]
[1749436737286,1.11522183,650.07,648.89,0.26779531]
[1749436737592,1.11522183,650.14,648.89,0.26779531]
[1749436737889,1.11522183,650.13,648.89,0.26779531]
[1749436738190,1.11522183,650.12,648.89,0.26779531]
[1749436738490,1.11522183,650.11,648.89,0.26779531]
[1749436738791,1.11522183,650.1,648.9,0.3082139]
[1749436739091,0.30762131,650.15,648.9,0.3082139]
[1749436739386,1.11370091,650.14,648.9,0.3082139]
[1749436739586,1.11370091,650.13,648.9,0.3082139]
[1749436739791,1.11370091,650.12,648.9,0.3082139]
[1749436739993,1.11370091,650.11,648.9,0.3082139]
[1749436740193,1.11370091,650.14,648.9,0.3082139]
[1749436740493,1.11370091,650.13,648.97,3.83604247]
[1749436740694,1.11370091,650.14,648.97,3.83604247]
[1749436740893,0.30762131,650.15,648.9,0.3082139]
[1749436740894,1.11370091,650.13,649.01,3.83604247]
[1749436741094,1.11370091,650.14,649.01,3.83604247]
[1749436741389,1.11370091,650.13,649.02,3.83604247]
[1749436741593,1.11370091,650.14,649.02,3.83604247]
[1749436741796,1.11370091,650.13,649.02,3.83604247]
[1749436741989,1.11370091,650.14,649.02,3.83604247]
[1749436742193,1.11370091,650.13,649.02,3.83604247]
[1749436742389,1.11370091,650.14,649.02,3.83604247]
[1749436747595,0.30762131,650.15,649.08,3.83604247]
[1749436748296,0.30762131,650.15,649.09,3.83604247]
[1749436748793,0.30762131,650.15,648.91,3.83604247]
[1749436748995,0.30762131,650.15,648.91,4.14425162]
[1749436749194,0.30762131,650.15,648.91,0.30820915]
[1749436756697,0.30762131,650.15,648.95,3.83604247]
[1749436757497,1.11370091,650.14,648.94,3.83604247]
[1749436757801,0.30763078,650.13,648.94,3.83604247]
[1749436757998,0.30763078,650.13,648.91,4.14425162]
[1749436758498,0.30763078,650.13,648.91,0.30820915]
[1749436766502,0.30763078,650.13,649.02,3.83604247]
[1749436767805,0.30763078,650.13,648.99,3.83604247]
[1749436768207,0.30763078,650.13,648.97,3.83604247]
[1749436768708,0.30763078,650.13,648.99,3.83604247]
[1749436771504,0.30763078,650.13,649.0,3.83604247]
[1749436772009,0.30763078,650.13,648.91,0.30820915]
[1749436777606,1.11063412,650.12,648.91,0.30820915]
[1749436779506,1.11063412,650.11,648.91,0.30820915]
[1749436779707,1.11063412,650.12,648.91,0.30820915]
[1749436779909,1.11063412,650.11,648.91,0.30820915]
[1749436780207,1.11063412,650.12,648.91,0.30820915]
[1749436780407,1.11063412,650.11,648.91,0.30820915]
[1749436780710,1.11063412,650.12,648.91,0.30820915]
[1749436780907,1.11063412,650.11,648.91,0.30820915]
[1749436781107,1.11063412,650.12,648.91,0.30820915]
[1749436781309,1.11063412,650.11,648.91,0.30820915]
[1749436781612,1.11063412,650.12,648.91,0.30820915]
[1749436781806,1.11063412,650.11,648.91,0.30820915]
[1749436782012,1.11063412,650.12,648.91,0.30820915]